bitfinex-derivatives/quotes_BTCF0:USTF0_20251214
["timestamp","ask_amount","ask_price","bid_price","bid_amount"]
[1765743120363,0.3608,88577.0,88570.0,0.0112884]
[1765743120658,0.3608,88587.0,88586.0,0.25047]
[1765743120659,0.49059,88587.0,88586.0,0.25047]
[1765743120856,0.3608,88587.0,88586.0,0.25047]
[1765743121161,0.3608,88597.0,88587.0,0.0112862]
[1765743121365,0.3608,88597.0,88596.0,0.32754]
[1765743122059,0.61908,88597.0,88588.0,0.65504]
[1765743122262,0.61908,88597.0,88589.0,0.011286]
[1765743122454,0.61908,88597.0,88596.0,0.12413]
[1765743122856,0.61908,88597.0,88596.0,0.25047]
[1765743123661,0.62608,88597.0,88596.0,0.25147]
[1765743124368,0.63208,88597.0,88596.0,0.25147]
[1765743124562,0.50359,88597.0,88596.0,0.32854]
[1765743124864,0.3738,88597.0,88596.0,0.32854]
[1765743126561,0.013,88597.0,88596.0,0.68934]
[1765743127458,2.06e-06,88601.0,88600.0,0.25047]
[1765743127959,2.06e-06,88601.0,88600.0,0.28055052]
[1765743128265,2.06e-06,88601.0,88600.0,0.25047]
[1765743128662,0.00100206,88601.0,88600.0,0.25047]
[1765743129372,2.06e-06,88601.0,88600.0,0.25047]
[1765743129763,0.3608,88625.0,88611.0,0.2617532]
[1765743130069,0.3608,88625.0,88611.0,0.9786332]
[1765743130964,0.053,88612.0,88611.0,0.9786332]
[1765743131166,0.054,88612.0,88611.0,0.9786332]
[1765743133672,0.0446538,88612.0,88611.0,0.9786332]
[1765743134172,3.8e-06,88612.0,88611.0,0.9786332]
[1765743136166,3.8e-06,88612.0,88611.0,0.9816332]
[1765743136674,3.8e-06,88612.0,88611.0,1.3816332]
[1765743136874,3.8e-06,88612.0,88611.0,1.4816332]
[1765743137372,0.49059,88642.0,88641.0,0.2617494]
[1765743137570,0.49059,88642.0,88641.0,0.9777894]
[1765743137775,0.3608,88642.0,88641.0,0.9777894]
[1765743138175,0.61908,88650.0,88649.0,0.12413]
[1765743138371,0.61908,88650.0,88633.0,0.00016922]
[1765743138372,0.25828,88634.0,88633.0,0.00016922]
[1765743138572,0.25828,88634.0,88633.0,0.69924922]
[1765743139374,0.12979,88634.0,88633.0,0.94971922]
[1765743140265,0.25828,88634.0,88633.0,0.94971922]
[1765743140475,0.25928,88634.0,88633.0,0.95071922]
[1765743141381,0.25606046,88634.0,88633.0,0.95071922]
[1765743142082,0.001,88634.0,88633.0,0.95071922]
[1765743142780,0.001,88634.0,88633.0,1.31151922]
[1765743145876,0.001,88634.0,88633.0,0.00116922]
[1765743145877,0.25928,88634.0,88633.0,0.00116922]
[1765743146084,0.25828,88615.0,88614.0,0.0112828]
[1765743146482,0.25828,88615.0,88614.0,0.9554228]
[1765743147078,0.22889889,88623.0,88622.0,0.0112818]
[1765743147278,0.22889889,88623.0,88622.0,0.2401018]
[1765743148281,0.22889889,88623.0,88622.0,0.2431018]
[1765743148482,0.22889889,88623.0,88622.0,0.003]
[1765743149291,0.22889889,88623.0,88622.0,0.004]
[1765743149483,0.22873,88608.0,88604.0,0.06060945]
[1765743149687,0.22873,88607.0,88606.0,0.01145302]
[1765743150686,0.22873,88607.0,88606.0,0.01545302]
[1765743150888,0.22873,88607.0,88606.0,0.02045302]
[1765743152200,0.22873,88607.0,88606.0,0.01645302]
[1765743152404,0.22873,88607.0,88606.0,0.02045302]
[1765743153103,0.22873,88607.0,88606.0,0.08106247]
[1765743153306,0.22873,88607.0,88606.0,0.06977867]
[1765743154009,0.22873,88607.0,88606.0,0.08106247]
[1765743154204,0.11575,88607.0,88606.0,0.25554302]
[1765743154400,0.23232,88619.0,88618.0,0.0112823]
[1765743155512,0.23232,88619.0,88618.0,0.0132823]
[1765743155808,0.59312,88619.0,88618.0,0.003]
[1765743157007,0.59312,88619.0,88618.0,0.23809]
[1765743157208,0.3608,88637.0,88622.0,0.2463718]
[1765743157407,0.12158889,88623.0,88622.0,0.2463718]
[1765743158005,0.23248889,88623.0,88622.0,0.23509]
[1765743158406,0.23248889,88623.0,88622.0,0.23609]
[1765743158613,0.23248889,88623.0,88622.0,0.23709]
[1765743159604,0.23248889,88623.0,88622.0,0.002]
[1765743161112,0.23248889,88623.0,88622.0,0.23709]
[1765743162318,0.23248889,88623.0,88622.0,0.59789]
[1765743162616,0.12158889,88623.0,88622.0,0.59789]
[1765743164011,0.00016889,88623.0,88622.0,0.59789]
[1765743164518,0.00016889,88623.0,88622.0,1.31185]
[1765743166606,0.3608,88647.0,88622.0,1.31185]
[1765743166607,0.48222,88637.0,88636.0,0.24637]
[1765743167122,0.48222,88637.0,88636.0,0.30707498]
[1765743167418,0.12142,88637.0,88636.0,0.30707498]
[1765743167603,0.23232,88637.0,88636.0,0.06070498]
[1765743167807,0.23432,88637.0,88636.0,0.06070498]
[1765743168520,0.23632,88637.0,88636.0,0.06070498]
[1765743169114,0.2475999,88637.0,88636.0,0.06070498]
[1765743169310,0.2475999,88637.0,88628.0,0.00016922]
[1765743169311,0.2436001,88635.0,88634.0,0.06070498]
[1765743170720,0.2456001,88635.0,88634.0,0.06070498]
[1765743170917,0.2466001,88635.0,88634.0,0.06070498]
[1765743171411,0.23532,88635.0,88634.0,0.29579498]
[1765743171613,0.003,88635.0,88634.0,0.23509]
[1765743172920,0.23532,88635.0,88634.0,0.23509]
[1765743173820,0.23232,88634.0,88633.0,0.0112804]
[1765743174414,0.23232,88634.0,88633.0,0.2463704]
[1765743175008,0.23432,88634.0,88633.0,0.2463704]
[1765743176021,0.23532,88634.0,88633.0,0.2463704]
[1765743177223,0.0142803,88634.0,88630.0,0.0112807]
[1765743177419,0.21621,88631.0,88630.0,0.0112807]
[1765743177722,0.21621,88631.0,88630.0,0.2307607]
[1765743178919,0.003,88634.0,88628.0,0.00016922]
[1765743178920,0.2274909,88629.0,88628.0,0.00016922]
[1765743180722,0.2284909,88629.0,88628.0,0.00016922]
[1765743181421,0.2284909,88629.0,88625.0,0.04049985]
[1765743181626,0.27891,88624.0,88623.0,0.04049985]
[1765743181826,0.2274917,88623.0,88622.0,0.04049985]
[1765743182227,0.2274924,88617.0,88616.0,0.06072415]
[1765743182423,0.21621,88617.0,88616.0,0.34581415]
[1765743182618,0.57701,88624.0,88623.0,0.21948]
[1765743182925,0.57701,88624.0,88623.0,0.25998979]
[1765743183121,0.3608,88624.0,88623.0,0.21948]
[1765743183327,0.3608,88624.0,88623.0,0.28020415]
[1765743183522,0.00016922,88625.0,88623.0,0.9322]
[1765743183728,0.00016922,88625.0,88624.0,0.2307615]
[1765743185321,0.00016922,88625.0,88624.0,0.2317615]
[1765743185623,0.00848408,88654.0,88624.0,0.2317615]
[1765743185624,0.00848408,88654.0,88653.0,0.2307579]
[1765743185933,0.00848408,88654.0,88653.0,0.5971979]
[1765743186430,0.00848408,88654.0,88653.0,1.3187979]
[1765743186632,0.3608,88677.0,88653.0,1.3187979]
[1765743186826,0.3608,88677.0,88654.0,0.21948]
[1765743187030,0.57701,88677.0,88676.0,0.11233]
[1765743187235,0.57701,88677.0,88676.0,0.15281339]
[1765743187428,0.57701,88677.0,88676.0,0.21948]
[1765743188632,0.58001,88677.0,88676.0,0.21948]
[1765743189132,0.21621,88676.0,88675.0,0.04048339]
[1765743189327,0.21621,88674.0,88673.0,0.04048339]
[1765743189927,0.21225058,88674.0,88673.0,0.25996339]
[1765743190121,0.3648,88677.0,88676.0,0.21948]
[1765743190326,0.3608,88677.0,88676.0,0.21948]
[1765743191229,0.3608,88688.0,88676.0,0.21948]
[1765743191230,0.3608,88688.0,88677.0,0.0112748]
[1765743191428,0.21621,88683.0,88682.0,0.24975377]
[1765743191632,0.21621,88683.0,88682.0,0.21948]
[1765743192439,0.3608,88688.0,88677.0,0.0112748]
[1765743192645,0.21621,88678.0,88677.0,0.0112748]
[1765743193540,0.004,88683.0,88675.0,0.04048339]
[1765743193541,0.21621,88676.0,88675.0,0.04048339]
[1765743193838,0.21621,88675.0,88674.0,0.40128339]
[1765743194027,0.21621,88675.0,88674.0,0.51361339]
[1765743194229,0.21621,88675.0,88674.0,0.62076339]
[1765743194424,0.21621,88675.0,88674.0,0.58028]
[1765743195041,0.11008,88675.0,88674.0,0.58028]
[1765743195339,0.3608,88688.0,88678.0,0.0112747]
[1765743195646,0.21621,88681.0,88680.0,0.21948]
[1765743197233,0.22021,88681.0,88680.0,0.21948]
[1765743198334,0.22421,88681.0,88680.0,0.21948]
[1765743198735,0.21621,88679.0,88678.0,0.03023256]
[1765743198935,0.21621,88679.0,88678.0,0.11233]
[1765743199242,0.21621,88679.0,88678.0,0.21948]
[1765743199742,0.22021,88679.0,88678.0,0.21948]
[1765743200150,0.11408,88679.0,88678.0,0.21948]
[1765743200541,0.11808,88679.0,88678.0,0.21948]
[1765743201140,0.008,88679.0,88678.0,0.21948]
[1765743201642,0.21621,88678.0,88677.0,0.04150736]
[1765743202043,0.11008,88678.0,88677.0,0.32659736]
[1765743202246,0.21621,88678.0,88677.0,0.32659736]
[1765743202543,0.21621,88678.0,88677.0,0.26098736]
[1765743202743,0.22021,88678.0,88677.0,0.26098736]
[1765743202945,0.22321,88678.0,88677.0,0.26098736]
[1765743203443,0.22321,88678.0,88676.0,0.03023256]
[1765743203746,0.21621,88677.0,88676.0,0.03023256]
[1765743204246,0.21621,88677.0,88676.0,0.04150736]
[1765743205240,0.21621,88677.0,88676.0,0.04150746]
[1765743205541,0.21621,88677.0,88676.0,0.0112749]
[1765743205741,0.21921,88677.0,88676.0,0.0112749]
[1765743205941,0.21921,88677.0,88676.0,0.04149356]
[1765743206140,0.21921,88677.0,88676.0,0.0112749]
[1765743206546,0.20743,88675.0,88674.0,0.3608]
[1765743206747,0.19472,88671.0,88670.0,0.0112757]
[1765743206942,0.19472,88671.0,88670.0,0.1118557]
[1765743207743,0.19472,88671.0,88670.0,0.2067357]
[1765743208142,0.19672,88671.0,88670.0,0.2067357]
[1765743208849,0.19672,88671.0,88670.0,0.0112757]
[1765743209037,0.19472,88669.0,88668.0,0.00016922]
[1765743209440,0.19472,88669.0,88668.0,0.04050917]
[1765743209649,0.19472,88669.0,88668.0,0.00016922]
[1765743209843,0.55552,88669.0,88668.0,0.00016922]
[1765743210045,0.55552,88669.0,88668.0,0.03042657]
[1765743210444,0.55752,88669.0,88668.0,0.00016922]
[1765743211252,0.55952,88669.0,88668.0,0.00016922]
[1765743211554,0.19589,88667.0,88666.0,0.03025735]
[1765743211757,0.2071662,88666.0,88665.0,0.03025735]
[1765743212050,0.3648,88669.0,88658.0,0.711]
[1765743212051,0.2071666,88663.0,88662.0,0.03025735]
[1765743212446,0.2474071,88659.0,88658.0,0.75133995]
[1765743212652,0.6082071,88659.0,88658.0,0.75133995]
[1765743212857,0.6082071,88659.0,88657.0,0.04033995]
[1765743213054,0.2071675,88656.0,88655.0,0.04033995]
[1765743213350,0.19589,88652.0,88651.0,0.1080181]
[1765743213556,0.19589,88652.0,88651.0,0.2102981]
[1765743214354,0.207168,88652.0,88651.0,0.0112781]
[1765743214950,0.207168,88652.0,88651.0,0.0122781]
[1765743215552,0.19589,88652.0,88651.0,0.0122781]
[1765743215754,0.19589,88652.0,88651.0,0.1090181]
[1765743215954,0.19589,88652.0,88651.0,0.1100181]
[1765743216350,0.19589,88652.0,88651.0,0.2122981]
[1765743220354,0.5679671,88659.0,88658.0,0.19902]
[1765743220556,0.55669,88659.0,88658.0,0.19902]
[1765743220763,0.19589,88658.0,88657.0,0.1080172]
[1765743221159,0.10192,88658.0,88657.0,0.2102972]
[1765743221463,0.19589,88658.0,88657.0,0.2102972]
[1765743228565,0.10192,88658.0,88657.0,0.2102972]
[1765743228766,0.10192,88658.0,88657.0,0.25075435]
[1765743228967,0.19589,88658.0,88657.0,0.25075435]
[1765743229469,0.19589,88658.0,88657.0,0.2102972]
[1765743230067,0.3608,88659.0,88658.0,0.19902]
[1765743230270,0.3608,88659.0,88658.0,0.23948092]
[1765743230470,0.46272,88659.0,88658.0,0.23948092]
[1765743230871,0.55669,88659.0,88658.0,0.23948092]
[1765743231367,0.55669,88659.0,88658.0,0.19902]
[1765743231573,0.10192,88659.0,88658.0,0.19902]
[1765743232373,0.19605922,88667.0,88666.0,0.19902]
[1765743232568,0.00016922,88667.0,88666.0,0.19902]
[1765743233660,0.00116922,88667.0,88666.0,0.19902]
[1765743233864,0.00116922,88667.0,88666.0,0.25970577]
[1765743234064,0.00116922,88667.0,88666.0,0.19902]
[1765743234273,0.00316922,88667.0,88666.0,0.19902]
[1765743235375,0.19905922,88667.0,88666.0,0.19902]
[1765743236877,0.10508922,88667.0,88666.0,0.19902]
[1765743237183,0.00316922,88667.0,88666.0,0.19902]
[1765743237363,0.3608,88697.0,88686.0,0.17575]
[1765743237682,0.3608,88697.0,88686.0,0.1870237]
[1765743238073,0.0112715,88703.0,88686.0,0.1870237]
[1765743238477,0.3608,88696.0,88695.0,0.1002125]
[1765743238772,0.4514,88705.0,88704.0,0.2394714]
[1765743238972,0.3608,88705.0,88704.0,0.2394714]
[1765743239374,0.3608,88705.0,88704.0,0.24973864]
[1765743239574,0.0364,88725.0,88724.0,0.17575]
[1765743239575,0.54195,88725.0,88724.0,0.17575]
[1765743240765,0.4514,88725.0,88724.0,0.17575]
[1765743240970,0.3608,88725.0,88724.0,0.17575]
[1765743241280,0.18115,88721.0,88720.0,0.08894]
[1765743241473,0.18115,88721.0,88720.0,0.21610965]
[1765743242277,0.18115,88721.0,88720.0,0.17575]
[1765743242876,0.4524,88725.0,88724.0,0.17575]
[1765743243180,0.54195,88725.0,88724.0,0.03023645]
[1765743243372,0.18115,88723.0,88722.0,0.03023645]
[1765743243777,0.18115,88723.0,88722.0,0.20598645]
[1765743243977,0.18115,88723.0,88722.0,0.2282]
[1765743244479,0.18115,88720.0,88719.0,0.58363645]
[1765743244675,0.18115,88720.0,88719.0,0.03023645]
[1765743245065,0.18115,88720.0,88718.0,0.03023645]
[1765743245269,0.18115,88718.0,88717.0,0.03023645]
[1765743245579,0.1924197,88717.0,88716.0,0.00016912]
[1765743245881,0.52851081,88730.0,88716.0,0.00016912]
[1765743245883,0.03996,88776.0,88731.0,0.05245]
[1765743246178,0.18115,88751.0,88750.0,0.08894]
[1765743246479,0.18115,88739.0,88738.0,0.187017]
[1765743246871,0.18115,88747.0,88746.0,0.1870159]
[1765743247281,0.18115,88747.0,88746.0,0.1002059]
[1765743247476,0.04541,88760.0,88746.0,0.1870159]
[1765743247777,0.18115,88752.0,88751.0,0.1870154]
[1765743248274,0.03996,88767.0,88751.0,0.1870154]
[1765743248476,0.18115,88752.0,88751.0,0.1870154]
[1765743248881,0.03996,88767.0,88751.0,0.1870154]
[1765743249082,0.0906,88752.0,88751.0,0.1870154]
[1765743249384,0.18115,88752.0,88751.0,0.3608]
[1765743249876,0.04716,88760.0,88759.0,0.17575]
[1765743249877,0.004,88760.0,88759.0,0.17575]
[1765743250479,0.18515,88760.0,88759.0,0.17575]
[1765743250787,0.18115,88758.0,88757.0,0.0112646]
[1765743250974,0.05119,88776.0,88744.0,0.68052]
[1765743250975,0.05119,88776.0,88759.0,0.0112643]
[1765743251180,0.18115,88768.0,88767.0,0.2394633]
[1765743251678,0.0906,88768.0,88767.0,0.2394633]
[1765743251987,0.05231,88785.0,88767.0,0.2394633]
[1765743252387,0.18115,88778.0,88777.0,0.3608]
[1765743253180,0.05231,88785.0,88767.0,0.0637133]
[1765743253181,0.18115,88768.0,88767.0,0.2282]
[1765743255385,0.003,88778.0,88767.0,0.2282]
[1765743255386,0.003,88778.0,88768.0,0.0112632]
[1765743255688,0.18115,88777.0,88776.0,0.44974]
[1765743256182,0.18115,88777.0,88776.0,0.3608]
[1765743257290,0.18415,88777.0,88776.0,0.3608]
[1765743257476,0.18715,88777.0,88776.0,0.3608]
[1765743257984,0.18715,88777.0,88776.0,0.589]
[1765743258285,0.0966,88777.0,88776.0,0.589]
[1765743258889,0.006,88777.0,88776.0,0.59940154]
[1765743261083,0.4210279,88810.0,88787.0,0.17575]
[1765743261387,0.05231,88821.0,88787.0,0.17575]
[1765743261388,0.0112539,88842.0,88787.0,0.17575]
[1765743261389,0.0906,88832.0,88831.0,0.17575]
[1765743261687,0.18115,88832.0,88831.0,0.17591892]
[1765743261884,0.18115,88832.0,88831.0,0.89751892]
[1765743262082,0.58115,88832.0,88831.0,0.20144892]
[1765743262382,0.5924051,88832.0,88831.0,0.20144892]
[1765743262586,0.1954051,88832.0,88831.0,0.20144892]
[1765743262785,0.5954051,88832.0,88831.0,0.20144892]
[1765743263182,0.5924051,88832.0,88831.0,0.20144892]
[1765743264097,0.9542051,88832.0,88831.0,0.0019]
[1765743264891,0.9542051,88832.0,88831.0,0.0029]
[1765743265390,0.9542051,88832.0,88831.0,0.0019]
[1765743266189,0.9532051,88832.0,88831.0,0.0029]
[1765743266592,0.9532051,88832.0,88831.0,0.0039]
[1765743267090,0.9532051,88832.0,88831.0,0.0029]
[1765743268081,0.2816487,88804.0,88801.0,0.3608]
[1765743268287,0.27039,88802.0,88801.0,0.3608]
[1765743269291,0.27039,88802.0,88801.0,0.3618]
[1765743270294,0.27039,88802.0,88801.0,0.002]
[1765743270882,0.27039,88802.0,88801.0,0.001]
[1765743271085,0.27039,88802.0,88801.0,0.002]
[1765743271488,0.27039,88802.0,88801.0,0.001]
[1765743272296,0.26453,88794.0,88793.0,0.00016892]
[1765743272496,0.26453,88794.0,88793.0,0.25184892]
[1765743272704,0.26453,88794.0,88793.0,0.00016892]
[1765743273196,0.29028,88794.0,88793.0,0.00016892]
[1765743273696,0.26453,88794.0,88793.0,0.00016892]
[1765743273892,0.26453,88794.0,88793.0,0.12802892]
[1765743275213,0.26453,88794.0,88793.0,0.12902892]
[1765743275398,0.26453,88794.0,88793.0,0.12802892]
[1765743275796,0.6132,88800.0,88799.0,0.25168]
[1765743276094,0.6132,88800.0,88796.0,0.37854]
[1765743276095,0.2524,88797.0,88796.0,0.37854]
[1765743276300,0.2524,88797.0,88796.0,0.25168]
[1765743277003,0.2524,88797.0,88796.0,0.86416]
[1765743277301,0.12417,88797.0,88796.0,0.86416]
[1765743277696,0.12417,88797.0,88796.0,0.61248]
[1765743277994,0.01142692,88810.0,88796.0,0.3608]
[1765743278199,0.2524,88806.0,88805.0,0.61248]
[1765743278598,0.2524,88806.0,88805.0,0.3608]
[1765743279096,0.2524,88801.0,88800.0,0.02992958]
[1765743279404,0.2636596,88797.0,88796.0,0.40270611]
[1765743279890,0.00016892,88810.0,88809.0,0.25168]
[1765743280093,0.2524,88823.0,88822.0,0.2629364]
[1765743280302,0.2524,88823.0,88822.0,0.0112564]
[1765743280601,0.2524,88823.0,88820.0,0.03018603]
[1765743280602,0.2524,88819.0,88818.0,0.03018603]
[1765743280905,0.2524,88819.0,88818.0,0.25168]
[1765743281206,0.25256792,88827.0,88826.0,0.25168]
[1765743281392,0.12433792,88827.0,88826.0,0.61248]
[1765743281592,0.00016792,88827.0,88826.0,0.6237359]
[1765743282206,0.0112535,88845.0,88834.0,0.0112548]
[1765743282393,0.2524,88841.0,88840.0,0.33154]
[1765743283003,0.3608,88855.0,88840.0,0.33154]
[1765743283004,0.3608,88855.0,88845.0,0.25168]
[1765743283204,0.2524,88851.0,88850.0,0.07986]
[1765743283504,0.12417,88861.0,88860.0,0.07986]
[1765743283689,0.25223,88851.0,88850.0,0.3616751]
[1765743283894,0.25223,88851.0,88850.0,0.33154]
[1765743284400,0.25223,88851.0,88850.0,0.07986]
[1765743284599,0.25223,88851.0,88850.0,0.44066]
[1765743284996,0.25108,88859.0,88858.0,0.33154]
[1765743285196,0.25108,88859.0,88858.0,0.69234]
[1765743285506,0.25108,88859.0,88858.0,0.3608]
[1765743285693,0.24993,88851.0,88850.0,0.4707951]
[1765743285893,0.24993,88851.0,88850.0,0.5976551]
[1765743286104,0.24993,88851.0,88850.0,0.56752]
[1765743286310,0.004,88859.0,88858.0,0.07986]
[1765743286311,0.25393,88859.0,88858.0,0.07986]
[1765743286500,0.24878,88851.0,88850.0,0.7337278]
[1765743286805,0.24878,88851.0,88850.0,0.7035927]
[1765743287403,0.24878,88851.0,88850.0,0.44066]
[1765743287603,0.24878,88851.0,88850.0,0.3608]
[1765743287906,0.2581737,88843.0,88842.0,0.00016882]
[1765743288608,0.2581737,88843.0,88828.0,0.04020412]
[1765743288609,0.12232,88833.0,88832.0,0.0301351]
[1765743288915,0.24464,88828.0,88820.0,0.1212517]
[1765743289098,0.60544,88832.0,88820.0,0.07986]
[1765743289301,0.24464,88827.0,88826.0,0.3608]
[1765743289710,0.24464,88827.0,88826.0,0.61248]
[1765743289908,0.0001685,88835.0,88834.0,0.25168]
[1765743289909,0.2425885,88835.0,88834.0,0.25168]
[1765743290110,0.1213785,88835.0,88834.0,0.61248]
[1765743290310,0.0001685,88835.0,88834.0,0.61248]
[1765743292107,0.11911,88837.0,88836.0,0.33154]
[1765743292307,0.11911,88837.0,88836.0,0.3427946]
[1765743292608,0.0112536,88845.0,88836.0,0.3427946]
[1765743293208,0.11801,88837.0,88836.0,0.3427946]
[1765743293413,0.23602,88837.0,88836.0,0.3427946]
[1765743293612,0.11801,88837.0,88836.0,0.3427946]
[1765743294107,0.11688,88840.0,88839.0,0.2629341]
[1765743294304,0.23376,88840.0,88839.0,0.2629341]
[1765743294498,0.23376,88840.0,88839.0,0.25168]
[1765743294697,0.0112539,88842.0,88841.0,0.25168]
[1765743294899,0.002,88845.0,88844.0,0.25168]
[1765743295108,0.002,88845.0,88844.0,0.61248]
[1765743295315,0.23352,88845.0,88844.0,0.61248]
[1765743295708,0.23152,88845.0,88844.0,0.61248]
[1765743296214,0.23252,88845.0,88844.0,0.61248]
[1765743296513,0.23452,88845.0,88844.0,0.61248]
[1765743296715,0.23452,88845.0,88844.0,0.64215684]
[1765743297410,0.23452,88845.0,88844.0,0.39047684]
[1765743298309,0.23452,88845.0,88844.0,0.62862684]
[1765743298612,0.003,88845.0,88844.0,0.62862684]
[1765743298804,0.23309287,88855.0,88854.0,0.23815]
[1765743299007,0.94357287,88855.0,88854.0,0.26782684]
[1765743299212,0.93328,88855.0,88854.0,0.26782684]
[1765743299708,0.93324,88855.0,88854.0,0.26782684]
[1765743300104,0.93624,88855.0,88854.0,0.26782684]
[1765743300609,0.9392,88855.0,88854.0,0.26782684]
[1765743301015,0.2288,88855.0,88854.0,0.02967684]
[1765743301314,0.93916,88855.0,88854.0,0.02967684]
[1765743301908,0.2287939,88842.0,88841.0,0.03010506]
[1765743302110,0.21754,88837.0,88836.0,0.10996506]
[1765743302314,0.21754,88837.0,88836.0,0.07986]
[1765743302505,0.22176,88835.0,88834.0,0.3608]
[1765743302706,0.22598,88833.0,88825.0,0.04020412]
[1765743303111,0.22598,88833.0,88831.0,0.03013257]
[1765743303308,0.93626,88833.0,88831.0,0.03013257]
[1765743303502,0.93626,88833.0,88830.0,0.03013257]
[1765743303703,0.22598,88833.0,88830.0,0.03013257]
[1765743303904,0.75342,88833.0,88832.0,0.00116882]
[1765743304213,0.22598,88833.0,88832.0,0.00116882]
[1765743304415,0.9363,88833.0,88832.0,0.00116882]
[1765743304615,0.93626,88833.0,88832.0,0.00116882]
[1765743306007,0.93626,88833.0,88832.0,0.00016882]
[1765743306214,0.22151,88829.0,88828.0,0.03013257]
[1765743306413,0.22151,88829.0,88810.0,0.07008]
[1765743306414,0.0112566,88820.0,88819.0,0.04020412]
[1765743306609,0.2171,88817.0,88804.0,0.0112586]
[1765743306810,0.2171,88817.0,88796.0,0.3608]
[1765743306811,0.228358,88810.0,88809.0,0.23815]
[1765743307109,0.2171,88810.0,88809.0,0.23815]
[1765743307423,1.76844,88823.0,88808.0,0.0112581]
[1765743307424,0.10871882,88818.0,88817.0,0.23815]
[1765743307623,0.81943882,88818.0,88817.0,0.59895]
[1765743308125,0.92798882,88818.0,88817.0,0.59895]
[1765743308623,0.21726882,88818.0,88817.0,0.59895]
[1765743308808,0.92798882,88818.0,88817.0,0.59895]
[1765743309117,0.93574882,88818.0,88817.0,0.610207]
[1765743309318,0.93574882,88818.0,88817.0,0.3628]
[1765743309518,0.93566882,88818.0,88817.0,0.002]
[1765743309921,0.22373,88811.0,88810.0,0.18883]
[1765743310122,0.22373,88811.0,88810.0,0.30823]
[1765743311725,0.93441,88811.0,88810.0,0.31023]
[1765743311912,0.22373,88811.0,88810.0,0.31223]
[1765743312111,0.93437,88811.0,88810.0,0.31223]
[1765743312814,0.00016882,88818.0,88810.0,0.31223]
[1765743312815,0.21604882,88818.0,88817.0,0.249407]
[1765743313007,0.92664882,88818.0,88817.0,0.249407]
[1765743313220,0.21604882,88818.0,88817.0,0.249407]
[1765743313416,0.21604882,88818.0,88817.0,0.610207]
[1765743313608,0.61200882,88818.0,88817.0,0.610207]
[1765743314218,0.61200882,88818.0,88817.0,0.612207]
[1765743315318,0.62326572,88818.0,88817.0,0.3628]
[1765743315519,0.62326572,88818.0,88817.0,0.002]
[1765743316113,0.62326572,88818.0,88817.0,0.004]
[1765743316622,0.62326572,88818.0,88817.0,0.003]
[1765743316924,0.207,88802.0,88801.0,0.23831882]
[1765743317217,0.91744,88802.0,88801.0,0.23831882]
[1765743317623,0.8139,88802.0,88801.0,0.23831882]
[1765743317821,0.7104,88802.0,88801.0,0.23831882]
[1765743318426,0.81334,88802.0,88801.0,0.24031882]
[1765743319014,0.20368,88811.0,88810.0,0.18883]
[1765743319214,0.91408,88811.0,88810.0,0.18883]
[1765743320322,0.20148,88802.0,88801.0,0.24231882]
[1765743320625,0.2116384,88807.0,88806.0,0.23815]
[1765743321827,0.2116384,88807.0,88806.0,0.23915]
[1765743322026,0.9219184,88807.0,88806.0,0.23915]
[1765743323830,0.9219184,88807.0,88806.0,0.002]
[1765743324729,0.9219184,88807.0,88806.0,0.12075]
[1765743325128,0.19058,88812.0,88811.0,0.23815]
[1765743325428,0.90062,88812.0,88811.0,0.23815]
[1765743326027,0.00016882,88818.0,88817.0,0.23815]
[1765743326215,0.71024882,88818.0,88817.0,0.23815]
[1765743326420,0.00016882,88818.0,88817.0,0.23815]
[1765743327226,0.09429,88836.0,88835.0,0.22047]
[1765743327523,0.3608,88852.0,88835.0,0.22047]
[1765743327524,0.197673,88849.0,88848.0,0.28926]
[1765743327734,0.532033,88849.0,88848.0,0.28926]
[1765743328819,0.532033,88849.0,88848.0,0.06879]
[1765743329019,0.532033,88849.0,88840.0,0.00016882]
[1765743329020,0.193434,88841.0,88840.0,0.00016882]
[1765743329227,0.1934364,88822.0,88821.0,0.18136]
[1765743329530,0.18218,88822.0,88821.0,0.28926]
[1765743330229,0.61485882,88830.0,88829.0,0.22047]
[1765743330427,0.01142422,88830.0,88829.0,0.58127]
[1765743330623,0.00016882,88830.0,88829.0,0.58127]
[1765743331931,0.00016882,88830.0,88829.0,0.58227]
[1765743332325,0.0112539,88842.0,88841.0,0.2233]
[1765743333130,0.0112539,88842.0,88841.0,0.5841]
[1765743333728,0.0122539,88842.0,88841.0,0.5841]
[1765743333926,0.1004239,88842.0,88841.0,0.5841]
[1765743334920,0.1024239,88842.0,88841.0,0.5841]
[1765743336120,0.1885039,88842.0,88841.0,0.11201]
[1765743336427,0.16794,88841.0,88840.0,0.066]
[1765743336630,0.1781349,88834.0,88833.0,0.11217882]
[1765743338730,0.1781349,88834.0,88833.0,0.00016882]
[1765743339533,0.1781349,88834.0,88833.0,0.11217882]
[1765743340742,0.1781349,88834.0,88833.0,0.00016882]
[1765743341336,0.1781349,88834.0,88812.0,0.42959]
[1765743341337,0.1687364,88822.0,88817.0,0.04034604]
[1765743341534,0.07773,88814.0,88813.0,0.04034604]
[1765743341735,0.07773,88814.0,88813.0,0.27490354]
[1765743341736,0.1667174,88814.0,88813.0,0.27490354]
[1765743342743,0.0112574,88814.0,88813.0,0.27490354]
[1765743343236,0.0112574,88814.0,88813.0,0.27590354]
[1765743343435,0.15356882,88822.0,88821.0,0.066]
[1765743344239,0.16482522,88822.0,88821.0,0.066]
[1765743344827,0.16482522,88822.0,88821.0,0.2893]
[1765743346730,0.16482522,88822.0,88821.0,0.2903]
[1765743347430,0.16482522,88822.0,88821.0,0.2913]
[1765743347943,0.16482522,88822.0,88821.0,0.2903]
[1765743348138,0.16482522,88822.0,88821.0,0.2913]
[1765743348330,0.16482522,88822.0,88821.0,0.002]
[1765743349334,0.16482522,88822.0,88821.0,0.067]
[1765743349541,0.16482522,88822.0,88821.0,0.001]
[1765743350333,0.16482522,88822.0,88812.0,0.06879]
[1765743350334,0.1503175,88813.0,88812.0,0.06879]
[1765743350745,0.1503175,88813.0,88812.0,0.1808]
[1765743351644,0.1503175,88813.0,88812.0,0.06879]